[Event "Late-Titled-Tuesday-Blitz-October-24-2023"]
[Site "Chess.com"]
[Date "2023.10.24"]
[Round "6"]
[White "dianamirza"]
[Black "Mbneu"]
[Result "1-0"]
[WhiteElo "2022"]
[BlackElo "2235"]
[TimeControl "180+1"]
[EndTime "15:07:22 PDT"]
[Termination "dianamirza won on time"]

1. e4 {[%clk 0:03:00.9]} 1... e5 {[%clk 0:02:58.6]} 2. Nf3 {[%clk 0:02:57.6]}
2... Nc6 {[%clk 0:02:58.3]} 3. Nc3 {[%clk 0:02:58.3]} 3... d6 {[%clk 0:02:54]}
4. g3 {[%clk 0:02:56.2]} 4... Bd7 {[%clk 0:02:50.3]} 5. Bg2 {[%clk 0:02:56.1]}
5... Qc8 {[%clk 0:02:50.5]} 6. O-O {[%clk 0:02:55.7]} 6... Bh3 {[%clk
0:02:49.8]} 7. d4 {[%clk 0:02:55.7]} 7... Bxg2 {[%clk 0:02:41.5]} 8. Kxg2 {[%clk
0:02:55.7]} 8... exd4 {[%clk 0:02:40.6]} 9. Nxd4 {[%clk 0:02:54.1]} 9... Nxd4
{[%clk 0:02:39.8]} 10. Qxd4 {[%clk 0:02:48.6]} 10... Ne7 {[%clk 0:02:38.1]} 11.
Nd5 {[%clk 0:02:45.8]} 11... Nc6 {[%clk 0:02:32.9]} 12. Qa4 {[%clk 0:02:34.5]}
12... h5 {[%clk 0:02:31.1]} 13. Bg5 {[%clk 0:02:33]} 13... f6 {[%clk 0:02:30.7]}
14. Be3 {[%clk 0:02:30.5]} 14... h4 {[%clk 0:02:28.9]} 15. Rh1 {[%clk
0:02:21.3]} 15... h3+ {[%clk 0:02:25.4]} 16. Kg1 {[%clk 0:02:20.7]} 16... Qg4
{[%clk 0:02:25.8]} 17. Nxc7+ {[%clk 0:02:17.3]} 17... Kd7 {[%clk 0:02:24.3]} 18.
Kf1 {[%clk 0:01:46.9]} 18... Kxc7 {[%clk 0:02:17]} 19. b4 {[%clk 0:01:41.5]}
19... Qxe4 {[%clk 0:02:12.7]} 20. Rg1 {[%clk 0:01:41.3]} 20... Qxb4 {[%clk
0:02:10.8]} 21. Qxb4 {[%clk 0:01:37.7]} 21... Nxb4 {[%clk 0:02:10.1]} 22. Rb1
{[%clk 0:01:37.1]} 22... Nc6 {[%clk 0:02:08.8]} 23. Ke2 {[%clk 0:01:34.6]} 23...
Re8 {[%clk 0:02:06.8]} 24. Rgd1 {[%clk 0:01:34.2]} 24... Rh5 {[%clk 0:02:04.4]}
25. Kf3 {[%clk 0:01:33.3]} 25... Ra5 {[%clk 0:01:56.9]} 26. Rb2 {[%clk
0:01:19.9]} 26... g5 {[%clk 0:01:52.6]} 27. Kg4 {[%clk 0:01:13.9]} 27... f5+
{[%clk 0:01:38]} 28. Kxg5 {[%clk 0:01:02.9]} 28... Bg7 {[%clk 0:01:27.3]} 29.
Rb3 {[%clk 0:00:49.5]} 29... Re4 {[%clk 0:01:14.3]} 30. Bf4 {[%clk 0:00:44.4]}
30... Be5 {[%clk 0:01:06.7]} 31. Kxf5 {[%clk 0:00:41.8]} 31... Re2 {[%clk
0:01:04.3]} 32. Kg4 {[%clk 0:00:18.9]} 32... Bxf4 {[%clk 0:01:02]} 33. gxf4
{[%clk 0:00:17.6]} 33... Rxf2 {[%clk 0:01:01]} 34. Rxh3 {[%clk 0:00:17.7]} 34...
Rxc2 {[%clk 0:00:58]} 35. Rh7+ {[%clk 0:00:17.5]} 35... Kb6 {[%clk 0:00:57.4]}
36. Rxd6 {[%clk 0:00:16.8]} 36... Ka6 {[%clk 0:00:46.3]} 37. Rdd7 {[%clk
0:00:16.4]} 37... Rb2 {[%clk 0:00:44.2]} 38. h4 {[%clk 0:00:15.4]} 38... Raxa2
{[%clk 0:00:37]} 39. h5 {[%clk 0:00:14.8]} 39... Rg2+ {[%clk 0:00:30.3]} 40. Kf5
{[%clk 0:00:14.7]} 40... Ra5+ {[%clk 0:00:28]} 41. Ke6 {[%clk 0:00:13.2]} 41...
Re2+ {[%clk 0:00:26.4]} 42. Kf6 {[%clk 0:00:11.7]} 42... Rb5 {[%clk 0:00:24.4]}
43. f5 {[%clk 0:00:11]} 43... Ne5 {[%clk 0:00:22.6]} 44. Rde7 {[%clk 0:00:07.2]}
44... Ng4+ {[%clk 0:00:21.8]} 45. Kg5 {[%clk 0:00:06.1]} 45... Rxe7 {[%clk
0:00:20.2]} 46. Rxe7 {[%clk 0:00:07]} 46... Ne5 {[%clk 0:00:16]} 47. h6 {[%clk
0:00:06.2]} 47... Nc6 {[%clk 0:00:13]} 48. Re6 {[%clk 0:00:05.7]} 48... Rb1
{[%clk 0:00:12.2]} 49. h7 {[%clk 0:00:04.9]} 49... Rg1+ {[%clk 0:00:12.7]} 50.
Kf6 {[%clk 0:00:04.9]} 50... Rh1 {[%clk 0:00:12.9]} 51. Kg7 {[%clk 0:00:05.1]}
51... Kb5 {[%clk 0:00:10.7]} 52. Rh6 {[%clk 0:00:05.1]} 52... Rg1+ {[%clk
0:00:09.9]} 53. Rg6 {[%clk 0:00:05.3]} 53... Rh1 {[%clk 0:00:08.9]} 54. Rh6
{[%clk 0:00:05.8]} 54... Rg1+ {[%clk 0:00:09.2]} 55. Kf8 {[%clk 0:00:05.4]}
55... Ne5 {[%clk 0:00:07.7]} 56. h8=Q {[%clk 0:00:04.4]} 56... Nd7+ {[%clk
0:00:07.5]} 57. Ke7 {[%clk 0:00:03.9]} 57... Nc5 {[%clk 0:00:07.4]} 58. Qb2+
{[%clk 0:00:02.5]} 58... Kc4 {[%clk 0:00:05.7]} 59. Qe2+ {[%clk 0:00:02.3]}
59... Kb4 {[%clk 0:00:03.7]} 60. Rh4+ {[%clk 0:00:01.3]} 60... Ka5 {[%clk
0:00:02.8]} 61. Qf2 {[%clk 0:00:02.2]} 1-0

[Event "Late-Titled-Tuesday-Blitz-October-24-2023"]
[Site "Chess.com"]
[Date "2023.10.24"]
[Round "6"]
[White "GianmarcoVaR"]
[Black "serefra99"]
[Result "0-1"]
[WhiteElo "2666"]
[BlackElo "2416"]
[TimeControl "180+1"]
[EndTime "15:07:35 PDT"]
[Termination "serefra99 won by resignation"]

1. e4 {[%clk 0:02:59.1]} 1... c6 {[%clk 0:02:59.8]} 2. d4 {[%clk 0:02:58]} 2...
d5 {[%clk 0:02:58.9]} 3. exd5 {[%clk 0:02:57.9]} 3... cxd5 {[%clk 0:02:49.2]} 4.
Bd3 {[%clk 0:02:58.1]} 4... Nc6 {[%clk 0:02:48.6]} 5. c3 {[%clk 0:02:58.2]} 5...
Qc7 {[%clk 0:02:47.7]} 6. h3 {[%clk 0:02:54.9]} 6... g6 {[%clk 0:02:46.8]} 7.
Qc2 {[%clk 0:02:47.2]} 7... Bg7 {[%clk 0:02:26.9]} 8. Nf3 {[%clk 0:02:46.3]}
8... Nf6 {[%clk 0:02:26.3]} 9. O-O {[%clk 0:02:44.9]} 9... O-O {[%clk
0:02:24.5]} 10. Re1 {[%clk 0:02:44.9]} 10... Be6 {[%clk 0:02:15.9]} 11. Nbd2
{[%clk 0:02:43.3]} 11... Rac8 {[%clk 0:02:13]} 12. a3 {[%clk 0:02:32.9]} 12...
Qd7 {[%clk 0:02:08.5]} 13. Nf1 {[%clk 0:02:17]} 13... Bf5 {[%clk 0:02:00.7]} 14.
Bxf5 {[%clk 0:02:11.1]} 14... Qxf5 {[%clk 0:02:00.3]} 15. Qe2 {[%clk 0:01:52.6]}
15... Rfe8 {[%clk 0:01:57.6]} 16. Ng3 {[%clk 0:01:50.8]} 16... Qd7 {[%clk
0:01:57.3]} 17. Ne5 {[%clk 0:01:51.5]} 17... Qe6 {[%clk 0:01:40.3]} 18. Nd3
{[%clk 0:01:35.1]} 18... Qxe2 {[%clk 0:01:39]} 19. Rxe2 {[%clk 0:01:36]} 19...
Nd7 {[%clk 0:01:33.7]} 20. Bf4 {[%clk 0:01:33.1]} 20... e6 {[%clk 0:01:33.7]}
21. Nf1 {[%clk 0:01:22.8]} 21... Na5 {[%clk 0:01:34]} 22. g4 {[%clk 0:01:23]}
22... Nc4 {[%clk 0:01:33.7]} 23. Ng3 {[%clk 0:01:22.8]} 23... Bf8 {[%clk
0:01:29.8]} 24. Kg2 {[%clk 0:01:22.5]} 24... Bd6 {[%clk 0:01:30.2]} 25. Bxd6
{[%clk 0:01:19.8]} 25... Nxd6 {[%clk 0:01:31.1]} 26. h4 {[%clk 0:01:17.2]} 26...
Kg7 {[%clk 0:01:30.8]} 27. Rh1 {[%clk 0:01:12]} 27... h6 {[%clk 0:01:30]} 28.
Rhe1 {[%clk 0:01:02.9]} 28... b5 {[%clk 0:01:24.9]} 29. f4 {[%clk 0:01:01.5]}
29... Nf6 {[%clk 0:01:18.2]} 30. Nf2 {[%clk 0:00:59.6]} 30... h5 {[%clk
0:01:13.9]} 31. g5 {[%clk 0:00:52.3]} 31... Nd7 {[%clk 0:01:13.3]} 32. Nd3
{[%clk 0:00:46.5]} 32... a5 {[%clk 0:01:11.8]} 33. Kf3 {[%clk 0:00:39.4]} 33...
Rc4 {[%clk 0:01:11.5]} 34. Nf1 {[%clk 0:00:23.2]} 34... Nf5 {[%clk 0:01:09.9]}
35. Rh2 {[%clk 0:00:17.3]} 35... Rec8 {[%clk 0:01:00]} 36. Nd2 {[%clk
0:00:17.4]} 36... R4c6 {[%clk 0:00:58.6]} 37. Nb3 {[%clk 0:00:18]} 37... Ra8
{[%clk 0:00:53.8]} 38. Nd2 {[%clk 0:00:13.2]} 38... Kf8 {[%clk 0:00:53.1]} 39.
Nf1 {[%clk 0:00:13.2]} 39... Ke7 {[%clk 0:00:52.4]} 40. Ne3 {[%clk 0:00:13.7]}
40... Nxe3 {[%clk 0:00:51.6]} 41. Rxe3 {[%clk 0:00:14.6]} 41... Kd6 {[%clk
0:00:51.6]} 42. Ke2 {[%clk 0:00:12.5]} 42... Rc7 {[%clk 0:00:51.9]} 43. Kd2
{[%clk 0:00:12.9]} 43... Nb6 {[%clk 0:00:52]} 44. Ree2 {[%clk 0:00:11.2]} 44...
Nc4+ {[%clk 0:00:48.1]} 45. Kc2 {[%clk 0:00:11.7]} 45... Rb8 {[%clk 0:00:44.7]}
46. Kb1 {[%clk 0:00:10.1]} 46... Ke7 {[%clk 0:00:32.6]} 47. Ka2 {[%clk
0:00:09.2]} 47... Nd6 {[%clk 0:00:31.8]} 48. Rh1 {[%clk 0:00:07.9]} 48... Nf5
{[%clk 0:00:32]} 49. Ree1 {[%clk 0:00:06.2]} 49... Kd6 {[%clk 0:00:32.2]} 50.
Rh3 {[%clk 0:00:06.4]} 50... Ra7 {[%clk 0:00:31.4]} 51. Kb1 {[%clk 0:00:06.6]}
51... Rab7 {[%clk 0:00:30.8]} 52. Kc1 {[%clk 0:00:06.9]} 52... Rc7 {[%clk
0:00:30.8]} 53. Kd1 {[%clk 0:00:07.5]} 53... Rc4 {[%clk 0:00:27.7]} 54. Ke2
{[%clk 0:00:06.7]} 54... b4 {[%clk 0:00:27.3]} 55. axb4 {[%clk 0:00:06.2]} 55...
axb4 {[%clk 0:00:27.7]} 56. Nxb4 {[%clk 0:00:04]} 56... Nxd4+ {[%clk 0:00:27.4]}
57. Kf2 {[%clk 0:00:03.8]} 57... Nf5 {[%clk 0:00:27.5]} 58. Nd3 {[%clk
0:00:03.5]} 58... Ra4 {[%clk 0:00:25.5]} 59. Rh2 {[%clk 0:00:02]} 59... Ra2
{[%clk 0:00:24.3]} 60. Kf3 {[%clk 0:00:02]} 60... Ra4 {[%clk 0:00:23]} 61. Ree2
{[%clk 0:00:01.9]} 61... Rc8 {[%clk 0:00:23.3]} 62. Ne5 {[%clk 0:00:02.3]} 62...
Rc7 {[%clk 0:00:21.5]} 63. Rd2 {[%clk 0:00:02.5]} 63... Ke7 {[%clk 0:00:20.6]}
64. Rd3 {[%clk 0:00:02.5]} 64... Rb7 {[%clk 0:00:20.5]} 65. Rdd2 {[%clk
0:00:03.1]} 65... Ra2 {[%clk 0:00:20.5]} 66. Nd3 {[%clk 0:00:03.7]} 66... Ra4
{[%clk 0:00:20]} 67. Nf2 {[%clk 0:00:03.6]} 67... Rc7 {[%clk 0:00:20.6]} 68. Nh1
{[%clk 0:00:03.5]} 68... Rcc4 {[%clk 0:00:21.2]} 69. Rd4 {[%clk 0:00:01.9]}
69... Rxd4 {[%clk 0:00:21.3]} 70. cxd4 {[%clk 0:00:02.4]} 70... Rxd4 {[%clk
0:00:21.7]} 71. Rc2 {[%clk 0:00:02.2]} 71... Rb4 {[%clk 0:00:22]} 72. Ng3 {[%clk
0:00:02.4]} 72... Nd4+ {[%clk 0:00:21.7]} 73. Kf2 {[%clk 0:00:01.9]} 73... Nxc2
{[%clk 0:00:22.6]} 74. f5 {[%clk 0:00:01.6]} 74... exf5 {[%clk 0:00:21.3]} 0-1

[Event "Late-Titled-Tuesday-Blitz-October-24-2023"]
[Site "Chess.com"]
[Date "2023.10.24"]
[Round "6"]
[White "mishanick"]
[Black "Witik"]
[Result "1/2-1/2"]
[WhiteElo "3048"]
[BlackElo "2806"]
[TimeControl "180+1"]
[EndTime "15:07:39 PDT"]
[Termination "Game drawn - insufficient material"]

1. c4 {[%clk 0:03:00.9]} 1... Nf6 {[%clk 0:02:58.8]} 2. Nc3 {[%clk 0:03:01.2]}
2... g6 {[%clk 0:02:56.7]} 3. e4 {[%clk 0:03:00.5]} 3... d6 {[%clk 0:02:57.3]}
4. d4 {[%clk 0:03:00.8]} 4... Bg7 {[%clk 0:02:57.9]} 5. Bd3 {[%clk 0:02:58.4]}
5... O-O {[%clk 0:02:57.1]} 6. Nge2 {[%clk 0:02:58.8]} 6... e5 {[%clk
0:02:53.8]} 7. d5 {[%clk 0:02:58.6]} 7... a5 {[%clk 0:02:53.4]} 8. f3 {[%clk
0:02:59]} 8... Nh5 {[%clk 0:02:43.9]} 9. Be3 {[%clk 0:02:58]} 9... Nd7 {[%clk
0:02:37.5]} 10. Qd2 {[%clk 0:02:56.8]} 10... Nc5 {[%clk 0:02:34.3]} 11. Bc2
{[%clk 0:02:55.9]} 11... f5 {[%clk 0:02:34.2]} 12. exf5 {[%clk 0:02:53.6]} 12...
gxf5 {[%clk 0:02:32.2]} 13. O-O-O {[%clk 0:02:52.5]} 13... Bd7 {[%clk
0:02:14.7]} 14. g4 {[%clk 0:02:27]} 14... fxg4 {[%clk 0:02:14.5]} 15. fxg4
{[%clk 0:02:27.3]} 15... Nf4 {[%clk 0:02:15.2]} 16. Nxf4 {[%clk 0:02:27.6]}
16... exf4 {[%clk 0:02:15.3]} 17. Bxc5 {[%clk 0:02:28.2]} 17... dxc5 {[%clk
0:02:13.9]} 18. Qd3 {[%clk 0:02:28.9]} 18... Qh4 {[%clk 0:02:14.1]} 19. Ne4
{[%clk 0:02:23.2]} 19... Bd4 {[%clk 0:01:42.6]} 20. h3 {[%clk 0:02:18]} 20... f3
{[%clk 0:01:40.5]} 21. Rdf1 {[%clk 0:02:18]} 21... f2 {[%clk 0:01:32.6]} 22. Kb1
{[%clk 0:02:17.1]} 22... Rae8 {[%clk 0:01:19.6]} 23. Qd2 {[%clk 0:01:56]} 23...
b5 {[%clk 0:00:54.3]} 24. Qxa5 {[%clk 0:01:36.7]} 24... bxc4 {[%clk 0:00:28.6]}
25. Qxc7 {[%clk 0:01:37.3]} 25... Qd8 {[%clk 0:00:28.7]} 26. Qxd8 {[%clk
0:01:01.3]} 26... Rxd8 {[%clk 0:00:28.9]} 27. g5 {[%clk 0:01:02.2]} 27... Rb8
{[%clk 0:00:26.5]} 28. Nf6+ {[%clk 0:01:02]} 28... Rxf6 {[%clk 0:00:24.8]} 29.
gxf6 {[%clk 0:01:02.5]} 29... Rxb2+ {[%clk 0:00:25.3]} 30. Kc1 {[%clk
0:01:01.8]} 30... Rxa2 {[%clk 0:00:12.3]} 31. Kd1 {[%clk 0:00:48.2]} 31... c3
{[%clk 0:00:08.7]} 32. d6 {[%clk 0:00:35.1]} 32... Kf8 {[%clk 0:00:07.8]} 33.
Bxh7 {[%clk 0:00:20.4]} 33... Ba4+ {[%clk 0:00:04.4]} 34. Kc1 {[%clk 0:00:18.6]}
34... c2 {[%clk 0:00:05]} 35. Kd2 {[%clk 0:00:17.8]} 35... Bb3 {[%clk
0:00:02.1]} 36. d7 {[%clk 0:00:13.4]} 36... Bxf6 {[%clk 0:00:01.7]} 37. Ke3
{[%clk 0:00:06.6]} 37... Ke7 {[%clk 0:00:02.1]} 38. Rxf2 {[%clk 0:00:05.6]}
38... Bg5+ {[%clk 0:00:02.7]} 39. Ke4 {[%clk 0:00:04.9]} 39... Kxd7 {[%clk
0:00:02.7]} 40. Rff1 {[%clk 0:00:04.4]} 40... Rb2 {[%clk 0:00:02.3]} 41. Bf5+
{[%clk 0:00:05]} 41... Kd6 {[%clk 0:00:02.6]} 42. h4 {[%clk 0:00:04.8]} 42...
Bd5+ {[%clk 0:00:03]} 43. Kd3 {[%clk 0:00:05]} 43... Bxh1 {[%clk 0:00:03.9]} 44.
hxg5 {[%clk 0:00:05.6]} 44... Rb1 {[%clk 0:00:03.9]} 45. Rxh1 {[%clk 0:00:03.8]}
45... Rxh1 {[%clk 0:00:03.7]} 46. Kxc2 {[%clk 0:00:04.5]} 46... Rg1 {[%clk
0:00:04.4]} 47. g6 {[%clk 0:00:04.7]} 47... Ke5 {[%clk 0:00:04.9]} 48. Bd3
{[%clk 0:00:05.1]} 48... Kd4 {[%clk 0:00:05.5]} 49. Bf5 {[%clk 0:00:05.6]} 49...
c4 {[%clk 0:00:05.1]} 50. Kd2 {[%clk 0:00:06.1]} 50... Rg2+ {[%clk 0:00:05.2]}
51. Kc1 {[%clk 0:00:06.7]} 51... Kc3 {[%clk 0:00:05.3]} 52. Kb1 {[%clk
0:00:06.5]} 52... Rg1+ {[%clk 0:00:05.7]} 53. Ka2 {[%clk 0:00:06.8]} 53... Kd2
{[%clk 0:00:06.4]} 54. Kb2 {[%clk 0:00:07.2]} 54... c3+ {[%clk 0:00:06.1]} 55.
Kb3 {[%clk 0:00:07.9]} 55... Rg5 {[%clk 0:00:06.7]} 56. Be4 {[%clk 0:00:08.1]}
56... Rb5+ {[%clk 0:00:06.5]} 57. Kc4 {[%clk 0:00:08.6]} 57... Rb8 {[%clk
0:00:06.5]} 58. Kd5 {[%clk 0:00:08]} 58... Rg8 {[%clk 0:00:05.8]} 59. Ke5 {[%clk
0:00:07.1]} 59... Re8+ {[%clk 0:00:06.1]} 60. Kf4 {[%clk 0:00:07.1]} 60... Rf8+
{[%clk 0:00:04.2]} 61. Kg5 {[%clk 0:00:07.2]} 61... Re8 {[%clk 0:00:04.9]} 62.
g7 {[%clk 0:00:05.7]} 62... Rd8 {[%clk 0:00:03]} 63. Bh7 {[%clk 0:00:03.6]}
63... c2 {[%clk 0:00:03.1]} 64. Bxc2 {[%clk 0:00:03]} 64... Kxc2 {[%clk
0:00:04]} 65. Kh6 {[%clk 0:00:03.5]} 65... Kd3 {[%clk 0:00:03.8]} 66. Kh7 {[%clk
0:00:04]} 66... Ke4 {[%clk 0:00:03.8]} 67. g8=Q {[%clk 0:00:04.9]} 67... Rxg8
{[%clk 0:00:03.7]} 68. Kxg8 {[%clk 0:00:05.8]} 1/2-1/2

[Event "Late-Titled-Tuesday-Blitz-October-24-2023"]
[Site "Chess.com"]
[Date "2023.10.24"]
[Round "6"]
[White "pooh2012"]
[Black "Krakozia"]
[Result "0-1"]
[WhiteElo "2482"]
[BlackElo "2931"]
[TimeControl "180+1"]
[EndTime "15:07:48 PDT"]
[Termination "Krakozia won by resignation"]

1. d4 {[%clk 0:03:00.9]} 1... Nf6 {[%clk 0:02:57.6]} 2. Bf4 {[%clk 0:02:59]}
2... c5 {[%clk 0:02:55.9]} 3. e3 {[%clk 0:02:58.5]} 3... g6 {[%clk 0:02:53.4]}
4. c3 {[%clk 0:02:56.7]} 4... Bg7 {[%clk 0:02:52.6]} 5. h3 {[%clk 0:02:51.8]}
5... cxd4 {[%clk 0:02:50.8]} 6. exd4 {[%clk 0:02:50.4]} 6... O-O {[%clk
0:02:50.4]} 7. Nf3 {[%clk 0:02:48.5]} 7... d6 {[%clk 0:02:50.4]} 8. Be2 {[%clk
0:02:46.7]} 8... Nd5 {[%clk 0:02:43.7]} 9. Bh2 {[%clk 0:02:43.9]} 9... Nc6
{[%clk 0:02:42.9]} 10. O-O {[%clk 0:02:42.8]} 10... e5 {[%clk 0:02:42.4]} 11.
dxe5 {[%clk 0:02:32.2]} 11... dxe5 {[%clk 0:02:43.3]} 12. Nbd2 {[%clk
0:02:29.4]} 12... Qc7 {[%clk 0:02:38.6]} 13. Re1 {[%clk 0:02:20.4]} 13... Rd8
{[%clk 0:02:34]} 14. Bb5 {[%clk 0:01:59.2]} 14... f6 {[%clk 0:02:26]} 15. Qa4
{[%clk 0:01:47.1]} 15... Be6 {[%clk 0:02:20.4]} 16. Ne4 {[%clk 0:01:24.7]} 16...
Qb6 {[%clk 0:02:14.7]} 17. Rad1 {[%clk 0:01:10.7]} 17... Nce7 {[%clk 0:02:03.1]}
18. c4 {[%clk 0:00:54.9]} 18... Nc7 {[%clk 0:01:59.6]} 19. Bd7 {[%clk
0:00:50.3]} 19... Qa6 {[%clk 0:01:31.4]} 20. Qxa6 {[%clk 0:00:45.9]} 20... bxa6
{[%clk 0:01:32.3]} 21. Bxe6+ {[%clk 0:00:39.9]} 21... Nxe6 {[%clk 0:01:33.2]}
22. Nc3 {[%clk 0:00:30.2]} 22... Nc6 {[%clk 0:01:28.1]} 23. Nd5 {[%clk
0:00:28.9]} 23... Kf7 {[%clk 0:01:28.3]} 24. b3 {[%clk 0:00:28.2]} 24... a5
{[%clk 0:01:27.7]} 25. Nd2 {[%clk 0:00:17.6]} 25... f5 {[%clk 0:01:27.8]} 26.
Nb1 {[%clk 0:00:17.7]} 26... e4 {[%clk 0:01:19.7]} 27. Nbc3 {[%clk 0:00:17.7]}
27... Nb4 {[%clk 0:01:12.9]} 28. Nb5 {[%clk 0:00:09.5]} 28... Nd3 {[%clk
0:01:08]} 29. Nd6+ {[%clk 0:00:06.2]} 29... Rxd6 {[%clk 0:01:06.3]} 30. Bxd6
{[%clk 0:00:05.5]} 30... Nxe1 {[%clk 0:01:04.9]} 31. Rxe1 {[%clk 0:00:06.4]}
31... Bd4 {[%clk 0:01:02.3]} 32. Rd1 {[%clk 0:00:06.1]} 32... Rc8 {[%clk
0:01:01]} 33. Kf1 {[%clk 0:00:06.1]} 33... a4 {[%clk 0:00:59.4]} 34. g3 {[%clk
0:00:05.1]} 34... Rc6 {[%clk 0:00:58.4]} 35. Bb4 {[%clk 0:00:04.2]} 35... axb3
{[%clk 0:00:58.1]} 36. axb3 {[%clk 0:00:04.1]} 36... Ra6 {[%clk 0:00:57.8]} 37.
Bc3 {[%clk 0:00:03.7]} 37... Bxc3 {[%clk 0:00:48.7]} 38. Nxc3 {[%clk 0:00:04.6]}
38... Ra3 {[%clk 0:00:48.6]} 39. Rd7+ {[%clk 0:00:03.7]} 39... Kf6 {[%clk
0:00:48.8]} 40. Nd5+ {[%clk 0:00:03.3]} 40... Ke5 {[%clk 0:00:48.7]} 41. b4
{[%clk 0:00:03.5]} 41... g5 {[%clk 0:00:41.8]} 42. Rxh7 {[%clk 0:00:02.6]} 42...
f4 {[%clk 0:00:41.3]} 43. gxf4+ {[%clk 0:00:03.5]} 43... gxf4 {[%clk 0:00:41.4]}
44. Rh5+ {[%clk 0:00:04]} 44... Kd4 {[%clk 0:00:41.5]} 45. Rf5 {[%clk 0:00:04]}
45... f3 {[%clk 0:00:38.1]} 46. Kg1 {[%clk 0:00:04.1]} 46... Ra1+ {[%clk
0:00:37.9]} 47. Kh2 {[%clk 0:00:04.2]} 47... Rf1 {[%clk 0:00:38.6]} 48. Kg3
{[%clk 0:00:02.1]} 48... Rg1+ {[%clk 0:00:38.6]} 49. Kh4 {[%clk 0:00:02.2]}
49... Kxc4 {[%clk 0:00:36.4]} 50. Nf6 {[%clk 0:00:01.6]} 50... Kd3 {[%clk
0:00:31.7]} 51. Rd5+ {[%clk 0:00:01.1]} 51... Nd4 {[%clk 0:00:31.3]} 52. Ng4
{[%clk 0:00:01.8]} 52... Kc3 {[%clk 0:00:26.8]} 53. Re5 {[%clk 0:00:02.7]} 53...
Re1 {[%clk 0:00:25.8]} 54. b5 {[%clk 0:00:03]} 54... Kc4 {[%clk 0:00:24.4]} 55.
Kg5 {[%clk 0:00:03.3]} 55... Nxb5 {[%clk 0:00:23]} 56. h4 {[%clk 0:00:03.8]}
56... Nc3 {[%clk 0:00:20.4]} 57. Ne3+ {[%clk 0:00:03.9]} 57... Rxe3 {[%clk
0:00:18.4]} 58. fxe3 {[%clk 0:00:03.9]} 58... Kd3 {[%clk 0:00:17.4]} 59. Rf5
{[%clk 0:00:04.1]} 59... Nd1 {[%clk 0:00:15]} 60. h5 {[%clk 0:00:04.4]} 60...
Nxe3 {[%clk 0:00:15.2]} 61. Rf8 {[%clk 0:00:04.6]} 61... Nc4 {[%clk 0:00:08.1]}
62. h6 {[%clk 0:00:04.8]} 62... e3 {[%clk 0:00:04.6]} 63. Rxf3 {[%clk
0:00:03.9]} 63... Ne5 {[%clk 0:00:05.2]} 64. Rg3 {[%clk 0:00:02.2]} 64... Kd2
{[%clk 0:00:04.4]} 65. Kf6 {[%clk 0:00:02.4]} 65... e2 {[%clk 0:00:04.4]} 66.
Rg2 {[%clk 0:00:02.6]} 66... Ng4+ {[%clk 0:00:04.5]} 67. Kg5 {[%clk 0:00:01.9]}
67... Nxh6 {[%clk 0:00:04.1]} 68. Kxh6 {[%clk 0:00:02.5]} 68... a5 {[%clk
0:00:04.3]} 69. Kg5 {[%clk 0:00:02.8]} 69... a4 {[%clk 0:00:04.5]} 70. Kf4
{[%clk 0:00:03]} 70... Kd1 {[%clk 0:00:04.4]} 71. Rg1+ {[%clk 0:00:01.2]} 71...
e1=Q {[%clk 0:00:04.2]} 72. Rxe1+ {[%clk 0:00:01.9]} 72... Kxe1 {[%clk
0:00:04.7]} 0-1